bitfinex/quotes_BTCUSD_20250204
["timestamp","ask_amount","ask_price","bid_price","bid_amount"]
[1738705958972,0.00022512,96867.0,96866.0,0.46623806]
[1738705959353,0.01224,96896.0,96895.0,0.154806]
[1738705959567,0.26611251,96931.0,96901.0,0.154797]
[1738705959731,0.01018071,96924.0,96911.0,0.154781]
[1738705959937,0.01018071,96924.0,96911.0,0.25716606]
[1738705960140,0.1587524,96945.0,96911.0,0.10238506]
[1738705960469,0.1587524,96945.0,96939.0,0.154736]
[1738705960470,0.01224,96940.0,96939.0,0.154736]
[1738705960866,0.01224,96940.0,96914.0,0.10238506]
[1738705961492,0.023,96939.0,96900.0,0.356397]
[1738705961634,0.154751,96930.0,96901.0,0.10362321]
[1738705961816,0.023,96939.0,96901.0,0.10362321]
[1738705961817,0.00014079,96939.0,96901.0,0.10362321]
[1738705962016,0.00014079,96939.0,96911.0,0.001]
[1738705962222,0.00014079,96939.0,96932.0,0.154746]
[1738705962458,0.00014079,96939.0,96937.0,0.154738]
[1738705962661,0.00014079,96939.0,96938.0,0.10238506]
[1738705962866,0.00014079,96939.0,96938.0,0.10362296]
[1738705963123,0.00014079,96939.0,96938.0,0.10238506]
[1738705964204,0.02314079,96939.0,96938.0,0.001]
[1738705964373,0.00014079,96939.0,96938.0,0.001]
[1738705964809,0.16518818,96939.0,96938.0,0.001]
[1738705964951,0.01045218,96939.0,96938.0,0.001]
[1738705965153,0.154738,96938.0,96930.0,0.15475]
[1738705965375,0.01045218,96939.0,96932.0,0.154747]
[1738705965604,0.01045218,96939.0,96938.0,0.001]
[1738705965838,0.00014079,96939.0,96909.0,0.15]
[1738705966041,0.00014079,96939.0,96910.0,0.10362302]
[1738705966326,0.00014079,96939.0,96938.0,0.001]
[1738705966916,0.00014079,96939.0,96929.0,0.206334]
[1738705967417,0.00014079,96939.0,96910.0,0.10238506]
[1738705967418,0.206317,96938.0,96911.0,0.15]
[1738705967645,0.0180845,96937.0,96922.0,0.154763]
[1738705967877,0.154749,96931.0,96918.0,0.206357]
[1738705968033,0.00014079,96939.0,96919.0,0.10238506]
[1738705968245,0.00014079,96939.0,96891.0,0.0823524]
[1738705968246,0.023,96937.0,96885.0,0.01054651]
[1738705968435,0.154781,96911.0,96910.0,0.001]
[1738705968629,0.206371,96913.0,96877.0,0.01041995]
[1738705968839,0.023,96925.0,96870.0,0.33070467]
[1738705968840,0.206377,96910.0,96879.0,0.206443]
[1738705969055,0.16856131,96935.0,96869.0,0.2888144]
[1738705969056,0.1548,96900.0,96889.0,0.154815]
[1738705969283,0.023,96931.0,96890.0,0.10238506]
[1738705969479,0.154798,96901.0,96891.0,0.154812]
[1738705969680,0.01224,96914.0,96891.0,0.10238506]
[1738705969943,0.01224,96914.0,96892.0,0.10362347]
[1738705970072,0.01224,96914.0,96911.0,0.154781]
[1738705970296,0.01224,96914.0,96892.0,0.10362347]
[1738705970297,0.01224,96914.0,96908.0,0.206379]
[1738705970503,0.01224,96914.0,96911.0,0.00047106]
[1738705970719,0.01224,96914.0,96913.0,0.154777]
[1738705971641,0.01224,96914.0,96911.0,0.00047106]
[1738705972225,0.154779,96913.0,96911.0,0.00047106]
[1738705972783,0.01224,96914.0,96911.0,0.00047106]
[1738705973081,0.154778,96913.0,96911.0,0.00047106]
[1738705973542,0.01224,96914.0,96911.0,0.00047106]
[1738705974165,0.154778,96913.0,96911.0,0.00047106]
[1738705974397,0.39012376,96912.0,96911.0,0.00047106]
[1738705975695,0.39312376,96912.0,96911.0,0.00047106]
[1738705976044,0.45498376,96912.0,96911.0,0.00047106]
[1738705976253,0.06186,96908.0,96845.0,0.0823524]
[1738705976454,0.06186,96908.0,96860.0,0.08249375]
[1738705976455,0.15486,96862.0,96860.0,0.08249375]
[1738705976652,0.15486,96862.0,96860.0,0.00014135]
[1738705977011,0.206454,96874.0,96860.0,0.00014135]
[1738705977581,0.154859,96862.0,96860.0,0.00014135]
[1738705977825,0.154859,96862.0,96860.0,0.00114135]
[1738705978025,0.154859,96862.0,96860.0,0.00014135]
[1738705978411,0.154859,96862.0,96860.0,0.00114135]
[1738705978621,0.154859,96862.0,96860.0,0.00014135]
[1738705979093,0.13762506,96861.0,96860.0,0.00114135]
[1738705980230,0.1477694,96861.0,96860.0,0.00114135]
[1738705980426,0.2977694,96861.0,96860.0,0.00014135]
[1738705981086,0.2977694,96861.0,96860.0,0.00024825]
[1738705981240,0.40026412,96861.0,96860.0,0.00024825]
[1738705981439,0.40226412,96861.0,96860.0,0.00024825]
[1738705982141,0.40726412,96861.0,96860.0,0.00024825]
[1738705982325,0.154872,96854.0,96853.0,0.0001071]
[1738705982551,0.154872,96854.0,96853.0,0.0002485]
[1738705982552,0.28025706,96854.0,96853.0,0.0002485]
[1738705983469,0.154921,96824.0,96815.0,0.154933]
[1738705983637,0.154921,96824.0,96803.0,0.206605]
[1738705983638,0.154918,96826.0,96816.0,0.10238506]
[1738705983844,0.154919,96825.0,96816.0,0.25731706]
[1738705984047,0.15492,96824.0,96816.0,0.25731706]
[1738705984247,0.206526,96840.0,96816.0,0.25731706]
[1738705984594,0.206526,96840.0,96816.0,0.10238506]
[1738705984743,0.20653,96838.0,96816.0,0.10238506]
[1738705984947,0.023,96837.0,96790.0,0.0806]
[1738705985159,0.023,96837.0,96816.0,0.001]
[1738705985160,0.154931,96817.0,96816.0,0.001]
[1738705985572,0.206546,96831.0,96805.0,0.154949]
[1738705985734,0.206562,96823.0,96806.0,0.25733306]
[1738705985940,0.023,96837.0,96806.0,0.25733306]
[1738705985941,0.154946,96808.0,96806.0,0.10238506]
[1738705986142,0.206588,96812.0,96806.0,0.10238506]
[1738705986367,0.15,96846.0,96775.0,0.0799]
[1738705986368,0.0299487,96853.0,96808.0,0.15]
[1738705986768,0.0299487,96853.0,96837.0,0.154899]
[1738705986769,0.0823524,96838.0,96837.0,0.154899]
[1738705986996,0.0823524,96838.0,96816.0,0.10338506]
[1738705986997,0.2372514,96838.0,96828.0,0.154912]
[1738705987213,0.206513,96847.0,96811.0,0.0759]
[1738705987214,0.01052513,96848.0,96839.0,0.154896]
[1738705987424,0.15489,96843.0,96811.0,0.0759]
[1738705987594,0.04861142,96847.0,96835.0,0.154901]
[1738705987841,0.04861142,96847.0,96813.0,0.10238506]
[1738705987842,0.04861142,96847.0,96836.0,0.10238506]
[1738705988013,0.04861142,96847.0,96846.0,0.154885]
[1738705988238,0.0001407,96848.0,96846.0,0.25727006]
[1738705988670,0.0001407,96848.0,96846.0,0.10238506]
[1738705988874,0.0001407,96848.0,96847.0,0.10362403]
[1738705989381,0.0001407,96848.0,96847.0,0.25362403]
[1738705989547,0.0001407,96848.0,96847.0,0.32828506]
[1738705989753,0.0001407,96848.0,96847.0,0.33828506]
[1738705990132,0.0001407,96848.0,96847.0,0.32828506]
[1738705990334,0.0001407,96848.0,96847.0,0.25238506]
[1738705990534,0.0001407,96848.0,96847.0,0.10238506]
[1738705990803,0.0001407,96848.0,96847.0,0.25826806]
[1738705991033,0.0001407,96848.0,96847.0,0.001]
[1738705991231,0.0001407,96848.0,96838.0,0.154897]
[1738705991406,0.0001407,96848.0,96847.0,0.001]
[1738705991605,0.0001407,96848.0,96847.0,0.10338506]
[1738705991806,0.0001407,96848.0,96847.0,0.10238506]
[1738705991969,0.0001407,96848.0,96838.0,0.01022205]
[1738705992177,0.0001407,96848.0,96846.0,0.154884]
[1738705992385,0.0001407,96848.0,96847.0,0.10362391]
[1738705992804,0.0001407,96848.0,96847.0,0.25362391]
[1738705993060,0.0001407,96848.0,96847.0,0.25249196]
[1738705993667,0.0001407,96848.0,96847.0,0.25349196]
[1738705994065,0.0001407,96848.0,96847.0,0.25249196]
[1738705994265,0.0001407,96848.0,96847.0,0.25349196]
[1738705994577,0.1550217,96848.0,96847.0,0.0001069]
[1738705994791,0.17052387,96848.0,96847.0,0.0001069]
[1738705994948,0.17052387,96848.0,96847.0,0.0011069]
[1738705994949,0.1550217,96848.0,96847.0,0.0011069]
[1738705995144,0.1550217,96848.0,96847.0,0.0001069]
[1738705995428,0.0001407,96848.0,96847.0,0.0001069]
[1738705995561,0.0001407,96848.0,96847.0,0.0011069]
[1738705996865,0.0001407,96848.0,96847.0,0.10249196]
[1738705997064,0.0001407,96848.0,96847.0,0.10373081]
[1738705997194,0.0001407,96848.0,96847.0,0.10473081]
[1738705997639,0.0001407,96848.0,96847.0,0.25473081]
[1738705997842,0.0001407,96848.0,96847.0,0.29879196]
[1738705998045,0.0001407,96848.0,96847.0,0.30879196]
[1738705998445,0.0001407,96848.0,96847.0,0.30779196]
[1738705998799,0.0001407,96848.0,96847.0,0.30879196]
[1738705999354,0.0001407,96848.0,96847.0,0.30897296]
[1738705999553,0.0001407,96848.0,96847.0,0.25349196]
[1738705999992,0.0001407,96848.0,96847.0,0.10249196]
[1738706000295,0.0001407,96848.0,96847.0,0.10473082]
[1738706000497,0.0001407,96848.0,96847.0,0.25473082]
[1738706000703,0.0001407,96848.0,96847.0,0.25349196]
[1738706001030,0.0001407,96848.0,96847.0,0.25449196]
[1738706001233,0.0001407,96848.0,96847.0,0.25249196]
[1738706001398,0.0001407,96848.0,96847.0,0.10349196]
[1738706001601,0.0001407,96848.0,96847.0,0.10249196]
[1738706002617,0.0001407,96848.0,96847.0,0.0001069]
[1738706002819,0.1550217,96848.0,96847.0,0.0001069]
[1738706003012,0.1550217,96848.0,96847.0,0.0011069]
[1738706003210,0.1550217,96848.0,96847.0,0.0001069]
[1738706003565,0.1550217,96848.0,96805.0,0.0759]
[1738706003566,0.154929,96819.0,96802.0,0.01022205]
[1738706003697,0.15492,96824.0,96816.0,0.154932]
[1738706003902,0.023,96845.0,96817.0,0.10238506]
[1738706004102,0.154924,96822.0,96817.0,0.10238506]
[1738706004301,0.20654,96834.0,96817.0,0.10238506]
[1738706004623,0.154926,96821.0,96817.0,0.10238506]
[1738706005028,0.0777,96839.0,96793.0,0.0102593]
[1738706005029,0.154945,96809.0,96802.0,0.001]
[1738706005240,0.154945,96809.0,96803.0,0.10238506]
[1738706005438,0.023,96831.0,96802.0,0.001]
[1738706005645,0.154943,96810.0,96803.0,0.10238506]
[1738706005808,0.206545,96831.0,96803.0,0.10238506]
[1738706006011,0.023,96831.0,96803.0,0.10238506]
[1738706006210,0.154941,96811.0,96803.0,0.10238506]
[1738706006408,0.154941,96811.0,96803.0,0.10285629]
[1738706006850,0.154944,96809.0,96803.0,0.10385629]
[1738706007061,0.154945,96809.0,96803.0,0.00147123]
[1738706007233,0.356545,96832.0,96803.0,0.00147123]
[1738706007598,0.0102284,96832.0,96804.0,0.10362462]
[1738706007803,0.0758,96851.0,96825.0,0.154917]
[1738706008055,0.0122,96848.0,96826.0,0.1036242]
[1738706008474,0.0122,96848.0,96843.0,0.154889]
[1738706008689,0.0122,96848.0,96844.0,0.10238506]
[1738706009018,0.0122,96848.0,96845.0,0.154886]
[1738706009224,0.0002245,96853.0,96851.0,0.154875]
[1738706009426,0.0002245,96853.0,96847.0,0.206511]
[1738706009791,0.00036522,96853.0,96848.0,0.10238506]
[1738706010270,0.00036522,96853.0,96843.0,0.01122205]
[1738706010271,0.00036522,96853.0,96845.0,0.001]
[1738706010439,0.154884,96847.0,96845.0,0.001]
[1738706010652,0.154878,96851.0,96843.0,0.01022205]
[1738706010808,0.00036522,96853.0,96847.0,0.155882]
[1738706011178,0.00036522,96853.0,96852.0,0.154875]
[1738706011384,0.00036522,96853.0,96852.0,0.25726006]
[1738706011811,0.00036522,96853.0,96847.0,0.20751]
[1738706011812,0.155045,96746.0,96728.0,0.01]
[1738706012018,0.155045,96746.0,96672.0,0.155163]
[1738706012019,0.155134,96691.0,96672.0,0.155163]
[1738706012227,0.33120956,96699.0,96690.0,0.029877]
[1738706012428,0.08374868,96690.0,96652.0,0.041358]
[1738706012651,0.08374868,96690.0,96649.0,0.0103164]
[1738706012652,0.01,96690.0,96655.0,0.01]
[1738706012992,0.01,96690.0,96664.0,0.206901]
[1738706013197,0.01,96690.0,96654.0,0.206922]
[1738706013198,0.165134,96691.0,96669.0,0.155167]
[1738706013395,0.01,96691.0,96689.0,0.0136802]
[1738706013596,0.33120956,96699.0,96689.0,0.01415143]
[1738706013802,0.01,96690.0,96689.0,0.01415143]
[1738706015648,0.033,96690.0,96689.0,0.01415143]
[1738706015991,0.155132,96692.0,96689.0,0.01415143]
[1738706016125,0.165132,96692.0,96689.0,0.01415143]
[1738706016326,0.02054799,96699.0,96689.0,0.01415143]
[1738706016327,0.01,96696.0,96689.0,0.01415143]
[1738706016528,0.01,96697.0,96689.0,0.01415143]
[1738706016899,0.004,96690.0,96689.0,0.01415143]
[1738706017026,0.155134,96691.0,96689.0,0.01415143]
[1738706017233,0.003,96692.0,96689.0,0.01415143]
[1738706017574,0.155134,96690.0,96689.0,0.01415143]
[1738706017801,0.003,96692.0,96689.0,0.01415143]
[1738706018004,0.165134,96690.0,96689.0,0.01425843]
[1738706018182,0.155133,96691.0,96689.0,0.01425843]
[1738706018324,0.01,96690.0,96689.0,0.01425843]
[1738706019592,0.013,96690.0,96689.0,0.01425843]
[1738706019937,0.003,96690.0,96689.0,0.01425843]
[1738706020135,0.006,96690.0,96689.0,0.01425843]
[1738706020344,0.155129,96694.0,96689.0,0.01884116]
[1738706020544,0.15513,96693.0,96689.0,0.01884116]
[1738706020749,0.007,96690.0,96689.0,0.01525843]
[1738706021151,0.017,96690.0,96689.0,0.01525843]
[1738706021347,0.04,96690.0,96689.0,0.01525843]
[1738706021753,0.14238506,96690.0,96689.0,0.01525843]
[1738706021951,0.14238506,96690.0,96689.0,0.01425843]
[1738706021952,0.01048969,96690.0,96689.0,0.01425843]
[1738706022213,0.155134,96691.0,96689.0,0.01882914]
[1738706022427,0.01,96690.0,96689.0,0.01982914]
[1738706022648,0.01,96690.0,96689.0,0.01425843]
[1738706022859,0.01,96690.0,96689.0,0.0198379]
[1738706023029,0.174134,96690.0,96689.0,0.01525843]
[1738706023243,0.174134,96690.0,96689.0,0.01425843]
[1738706023244,0.019,96690.0,96689.0,0.01425843]
[1738706023407,0.019,96690.0,96689.0,0.01525843]
[1738706024014,0.009,96690.0,96689.0,0.01525843]
[1738706024303,0.01,96707.0,96689.0,0.01425843]
[1738706024579,0.01,96707.0,96690.0,0.10238506]
[1738706024806,0.01,96701.0,96690.0,0.206846]
[1738706024976,0.01,96701.0,96695.0,0.155126]
[1738706025412,0.01,96703.0,96696.0,0.155124]
[1738706025563,0.01,96706.0,96697.0,0.155123]
[1738706025763,0.01,96707.0,96698.0,0.15967606]
[1738706025969,0.155109,96706.0,96698.0,0.00455506]
[1738706026165,0.01,96701.0,96696.0,0.155124]
[1738706026367,0.01,96708.0,96696.0,0.155124]
[1738706026547,0.01,96701.0,96697.0,0.15967706]
[1738706026748,0.01,96704.0,96697.0,0.00455506]
[1738706026971,0.01,96704.0,96698.0,0.206829]
[1738706027173,0.01,96704.0,96690.0,0.206846]
[1738706027374,0.01,96704.0,96699.0,0.00455506]
[1738706027540,0.01,96704.0,96700.0,0.00455506]
[1738706027737,0.01,96712.0,96696.0,0.002]
[1738706027942,0.01,96711.0,96700.0,0.206823]
[1738706028142,0.01,96711.0,96698.0,0.206829]
[1738706028353,0.01,96711.0,96697.0,0.10238506]
[1738706028591,0.01,96711.0,96707.0,0.155107]
[1738706029186,0.01,96714.0,96707.0,0.155106]
[1738706029390,0.01,96714.0,96709.0,0.155102]
[1738706030028,0.01,96714.0,96710.0,0.00455506]
[1738706030229,0.002,96711.0,96706.0,0.20681]
[1738706030431,0.01,96714.0,96706.0,0.20681]
[1738706030585,0.01,96707.0,96690.0,0.206846]
[1738706030949,0.01,96712.0,96705.0,0.15511]
[1738706031485,0.01,96707.0,96692.0,0.00124088]
[1738706031687,0.165097,96714.0,96705.0,0.15511]
[1738706031988,0.01,96714.0,96694.0,0.206838]
[1738706032192,0.012,96714.0,96712.0,0.155098]
[1738706032418,0.012,96714.0,96709.0,0.155103]
[1738706032599,0.01,96714.0,96710.0,0.155102]
[1738706033219,0.01,96714.0,96697.0,0.00124078]
[1738706033420,0.01,96706.0,96690.0,0.206846]
[1738706033617,0.01,96700.0,96695.0,0.155126]
[1738706033798,0.01,96700.0,96691.0,0.206844]
[1738706034057,0.01,96700.0,96692.0,0.206842]
[1738706034208,0.01,96706.0,96690.0,0.206846]
[1738706034409,0.01,96712.0,96711.0,0.1551]
[1738706034644,0.01,96712.0,96691.0,0.10362602]
[1738706035456,0.01,96708.0,96691.0,0.10238506]
[1738706035658,0.01,96699.0,96661.0,0.0466]
[1738706035860,0.01,96702.0,96665.0,0.00124103]
[1738706036171,0.165112,96705.0,96697.0,0.155122]
[1738706036373,0.165109,96706.0,96698.0,0.155121]
[1738706036598,0.01,96706.0,96703.0,0.155113]
[1738706036800,0.01,96706.0,96704.0,0.155111]
[1738706037023,0.20701591,96716.0,96704.0,0.155111]
[1738706037024,0.01,96711.0,96709.0,0.155104]
[1738706037352,0.01,96711.0,96704.0,0.206814]
[1738706037553,0.01,96711.0,96707.0,0.155106]
[1738706037854,0.01,96711.0,96704.0,0.206814]
[1738706037855,0.01,96711.0,96704.0,0.155111]
[1738706038108,0.00022491,96716.0,96698.0,0.002]
[1738706038109,0.01,96706.0,96698.0,0.002]
[1738706038335,0.01,96706.0,96700.0,0.206825]
[1738706038463,0.01,96711.0,96704.0,0.155112]
[1738706038667,0.01,96707.0,96706.0,0.155109]
[1738706038866,0.01,96711.0,96689.0,0.01425843]
[1738706039083,0.01,96711.0,96707.0,0.155106]
[1738706039306,0.012,96711.0,96692.0,0.206842]
[1738706039504,0.012,96711.0,96693.0,0.10238506]
[1738706039674,0.167101,96711.0,96702.0,0.155114]
[1738706039879,0.166108,96707.0,96698.0,0.155121]
[1738706040101,0.00022491,96716.0,96689.0,0.01425843]
[1738706040102,0.01,96699.0,96689.0,0.01425843]
[1738706040533,0.01,96696.0,96692.0,0.002]
[1738706040734,0.165126,96696.0,96689.0,0.01425843]
[1738706040936,0.155134,96691.0,96689.0,0.01425843]
[1738706041261,0.01,96692.0,96689.0,0.01425843]
[1738706041462,0.23273608,96727.0,96689.0,0.01425843]
[1738706041661,0.01,96705.0,96698.0,0.155121]
[1738706041880,0.01,96710.0,96690.0,0.10362596]
[1738706042127,0.01,96711.0,96704.0,0.155111]
[1738706042304,0.01,96710.0,96704.0,0.155111]
[1738706042503,0.04879207,96709.0,96708.0,0.155106]
[1738706042729,0.04879207,96709.0,96707.0,0.155107]
[1738706042989,0.04879207,96709.0,96708.0,0.155106]
[1738706043177,0.04879207,96709.0,96697.0,0.20683]
[1738706043329,0.04879207,96709.0,96699.0,0.206827]
[1738706043737,0.04879207,96709.0,96698.0,0.10238506]
[1738706043937,0.05079207,96709.0,96699.0,0.206827]
[1738706044187,0.002,96709.0,96708.0,0.155106]
[1738706044369,0.002,96709.0,96706.0,0.155109]
[1738706044545,0.002,96709.0,96678.0,0.15]
[1738706044748,0.002,96709.0,96708.0,0.155106]
[1738706045146,0.01,96714.0,96709.0,0.155104]
[1738706045350,0.01,96714.0,96697.0,0.206831]
[1738706045351,0.01,96714.0,96710.0,0.155102]
[1738706045551,0.00022491,96716.0,96700.0,0.206825]
[1738706045751,0.00022491,96716.0,96712.0,0.155098]
[1738706046116,0.002,96709.0,96708.0,0.155104]
[1738706046251,0.00022491,96716.0,96708.0,0.155106]
[1738706046447,0.01,96715.0,96708.0,0.155104]
[1738706046649,0.01,96715.0,96701.0,0.10238506]
[1738706046650,0.01,96715.0,96703.0,0.206818]
[1738706046857,0.01,96715.0,96706.0,0.155108]
[1738706047064,0.01,96715.0,96702.0,0.20682]
[1738706047246,0.01,96715.0,96713.0,0.155096]
[1738706047447,0.206758,96732.0,96703.0,0.30920306]
[1738706047448,0.01,96724.0,96716.0,0.413582]
[1738706047690,0.01,96724.0,96709.0,0.206804]
[1738706047691,0.01,96724.0,96723.0,0.155082]
[1738706047904,0.01,96719.0,96698.0,0.01015]
[1738706048127,0.01,96723.0,96700.0,0.206825]
[1738706048295,0.01,96723.0,96722.0,0.155083]
[1738706049265,0.01,96723.0,96722.0,0.00047123]
[1738706049456,0.01,96723.0,96722.0,0.15555423]
[1738706049658,0.01,96723.0,96722.0,0.15755423]
[1738706050073,0.01,96723.0,96722.0,0.15555423]
[1738706050273,0.01,96723.0,96722.0,0.15755423]
[1738706051539,0.01,96723.0,96722.0,0.15555423]
[1738706051944,0.01,96723.0,96722.0,0.15755423]
[1738706052204,0.01,96723.0,96722.0,0.15555423]
[1738706052359,0.01,96723.0,96722.0,0.00047123]
[1738706052563,0.01,96723.0,96722.0,0.15755423]
[1738706052761,0.01,96723.0,96722.0,0.15555423]
[1738706053164,0.01,96723.0,96722.0,0.15755423]
[1738706053564,0.01,96723.0,96722.0,0.00247123]
[1738706053766,0.033,96723.0,96722.0,0.00247123]
[1738706054371,0.01,96723.0,96722.0,0.15755423]
[1738706054572,0.01,96723.0,96722.0,0.15555423]
[1738706055130,0.01,96723.0,96722.0,0.15755423]
[1738706055334,0.01,96723.0,96722.0,0.15555423]
[1738706055736,0.01,96724.0,96723.0,0.155082]
[1738706055892,0.023,96740.0,96722.0,0.15555423]
[1738706055893,0.01,96723.0,96722.0,0.15555423]
[1738706056100,0.01,96723.0,96722.0,0.00047123]
[1738706056296,0.01,96723.0,96722.0,0.00247123]
[1738706056497,0.01,96723.0,96722.0,0.15555423]
[1738706056821,0.01,96723.0,96722.0,0.00047123]
[1738706057953,0.01,96723.0,96722.0,0.15555423]
[1738706059192,0.01,96723.0,96722.0,0.00247123]
[1738706059382,0.01,96723.0,96722.0,0.00047123]
[1738706059683,0.01,96723.0,96722.0,0.15555423]
[1738706059885,0.01,96723.0,96722.0,0.15755423]
[1738706060344,0.01,96723.0,96722.0,0.00247123]
[1738706060549,0.00934877,96723.0,96722.0,0.00247123]
[1738706060771,0.00934877,96723.0,96722.0,0.15755423]
[1738706060956,0.00934877,96723.0,96722.0,0.15555423]
[1738706061506,0.00934877,96723.0,96722.0,0.15755423]
[1738706061706,0.00934877,96723.0,96722.0,0.15555423]
[1738706062140,0.00934877,96723.0,96722.0,0.15755423]
[1738706062320,0.00934877,96723.0,96722.0,0.15555423]
[1738706062465,0.00934877,96723.0,96722.0,0.15755423]
[1738706062885,0.00934877,96723.0,96722.0,0.15555423]
[1738706064317,0.00934877,96723.0,96722.0,0.15755423]
[1738706064516,0.00934877,96723.0,96722.0,0.15555423]
[1738706065058,0.00934877,96723.0,96722.0,0.15755423]
[1738706065261,0.00934877,96723.0,96722.0,0.15555423]
[1738706065462,0.00934877,96723.0,96722.0,0.15755423]
[1738706065770,0.00934877,96723.0,96722.0,0.15555423]
[1738706066154,0.00934877,96723.0,96722.0,0.15755423]
[1738706066367,0.00934877,96723.0,96722.0,0.00247123]
[1738706066516,0.00934877,96723.0,96722.0,0.15755423]
[1738706067345,0.00934877,96723.0,96722.0,0.00247123]
[1738706067502,0.00934877,96723.0,96722.0,0.15555423]
[1738706067944,0.00934877,96723.0,96722.0,0.15755423]
[1738706068119,0.00947348,96723.0,96722.0,0.15555423]
[1738706068981,0.00947348,96723.0,96722.0,0.15755423]
[1738706069384,0.00947348,96723.0,96722.0,0.15555423]
[1738706069987,0.03247348,96723.0,96722.0,0.15555423]
[1738706070396,0.03247348,96723.0,96722.0,0.00047123]
[1738706070771,0.03247348,96723.0,96722.0,0.00247123]
[1738706071296,0.03247348,96723.0,96722.0,0.15755423]
[1738706071536,0.03247348,96723.0,96722.0,0.15555423]
[1738706071673,0.03247348,96723.0,96722.0,0.00047123]
[1738706071879,0.03247348,96723.0,96722.0,0.00247123]
[1738706072078,0.03247348,96723.0,96722.0,0.00047123]
[1738706072492,0.03247348,96723.0,96722.0,0.00247123]
[1738706072984,0.03247348,96723.0,96722.0,0.15755423]
[1738706073797,0.03247348,96723.0,96722.0,0.15555423]
[1738706074245,0.03247348,96723.0,96722.0,0.15755423]
[1738706074400,0.03247348,96723.0,96722.0,0.00047123]
[1738706074825,0.03247348,96723.0,96722.0,0.00247123]
[1738706075034,0.03247348,96723.0,96722.0,0.00047123]
[1738706075457,0.03247348,96723.0,96722.0,0.00247123]
[1738706075654,0.13485854,96723.0,96722.0,0.00047123]
[1738706077462,0.13485854,96723.0,96722.0,0.00247123]
[1738706077906,0.15509214,96723.0,96722.0,0.00247123]
[1738706078084,0.15509214,96723.0,96722.0,0.00047123]
[1738706078291,0.15509214,96723.0,96722.0,0.00247123]
[1738706078495,0.14584337,96723.0,96722.0,0.00247123]
[1738706078702,0.15509214,96723.0,96722.0,0.00247123]
[1738706079966,0.03247348,96723.0,96722.0,0.00247123]
[1738706080664,0.02322471,96723.0,96722.0,0.00247123]
[1738706080806,0.03247348,96723.0,96722.0,0.00257823]
[1738706081260,0.13485854,96723.0,96722.0,0.00257823]
[1738706081465,0.36285433,96723.0,96722.0,0.00257823]
[1738706081671,0.18224877,96690.0,96664.0,0.28963808]
[1738706081843,0.28463383,96690.0,96689.0,0.01425791]
[1738706082433,0.18224877,96690.0,96689.0,0.01425791]
[1738706082637,0.03224877,96690.0,96689.0,0.01425791]
[1738706083642,0.206815,96705.0,96689.0,0.01425791]
[1738706083643,0.00924877,96705.0,96689.0,0.01425791]
[1738706083769,0.00924877,96690.0,96689.0,0.16939391]
[1738706084182,0.00924877,96690.0,96689.0,0.17714956]
[1738706084365,0.00924877,96690.0,96689.0,0.02201356]
[1738706084565,0.03224877,96690.0,96689.0,0.02101356]
[1738706084777,0.03224877,96690.0,96689.0,0.17714956]
[1738706084972,0.03224877,96690.0,96689.0,0.17614956]
[1738706085856,0.023,96690.0,96689.0,0.17614956]
[1738706086034,0.023,96690.0,96689.0,0.17714956]
[1738706087223,0.023,96690.0,96689.0,0.17614956]
[1738706087591,0.023,96690.0,96689.0,0.17714956]
[1738706087732,0.023,96690.0,96689.0,0.17614956]
[1738706088115,0.09410877,96690.0,96689.0,0.17714956]
[1738706088321,0.03224877,96690.0,96689.0,0.17714956]
[1738706089250,0.03224877,96690.0,96689.0,0.17039391]
[1738706089665,0.03224877,96690.0,96689.0,0.01525791]
[1738706089894,0.18738277,96690.0,96689.0,0.01525791]
[1738706090534,0.19538277,96690.0,96689.0,0.01525791]
[1738706091076,0.05077214,96690.0,96689.0,0.01425791]
[1738706091249,0.05077214,96690.0,96689.0,0.01525791]
[1738706091861,0.04024877,96690.0,96689.0,0.01525791]
[1738706092082,0.008,96690.0,96689.0,0.01425791]
[1738706092476,0.01724877,96690.0,96689.0,0.01525791]
[1738706093135,0.008,96690.0,96689.0,0.01525791]
[1738706093347,0.008,96690.0,96689.0,0.11888391]
[1738706093551,0.008,96690.0,96689.0,0.11764297]
[1738706093919,0.008,96690.0,96689.0,0.01425791]
[1738706094282,0.031,96690.0,96689.0,0.01525791]
[1738706094532,0.03096,96690.0,96689.0,0.01425791]
[1738706094675,0.03096,96690.0,96689.0,0.11664297]
[1738706094998,0.03096,96690.0,96689.0,0.11764297]
[1738706095198,0.03096,96690.0,96689.0,0.11664297]
[1738706095401,0.00796,96690.0,96689.0,0.11764297]
[1738706095601,0.00796,96690.0,96689.0,0.11888383]
[1738706095803,0.00796,96690.0,96689.0,0.11788383]
[1738706096054,0.00796,96690.0,96689.0,0.11788387]
[1738706096636,0.00796,96690.0,96689.0,0.27301987]
[1738706096837,0.00796,96690.0,96689.0,0.27177897]
[1738706097045,0.00796,96690.0,96689.0,0.27277897]
[1738706097459,0.00796,96690.0,96689.0,0.27177897]
[1738706097676,0.00796,96690.0,96689.0,0.27277897]
[1738706097921,0.00796,96690.0,96689.0,0.27177897]
[1738706098392,0.00796,96690.0,96689.0,0.27277897]
[1738706098580,0.00796,96690.0,96689.0,0.27177897]
[1738706098778,0.00796,96690.0,96689.0,0.42177897]
[1738706098933,0.00796,96690.0,96689.0,0.11764297]
[1738706099137,0.00796,96690.0,96689.0,0.01525791]
[1738706099138,0.01720877,96690.0,96689.0,0.01525791]
[1738706099392,0.05054641,96690.0,96689.0,0.01525791]
[1738706099759,0.19418361,96690.0,96689.0,0.01525791]
[1738706099967,0.05054641,96690.0,96689.0,0.01525791]
[1738706100172,0.05054641,96690.0,96689.0,0.01425791]
[1738706100377,0.04020877,96690.0,96689.0,0.01525791]
[1738706100579,0.04020877,96690.0,96689.0,0.17039391]
[1738706100852,0.04020877,96690.0,96689.0,0.16939391]
[1738706101069,0.04020877,96690.0,96689.0,0.01425791]
[1738706101276,0.18386099,96690.0,96689.0,0.01525791]
[1738706101458,0.33386099,96690.0,96689.0,0.01425791]
[1738706101905,0.33386099,96690.0,96689.0,0.01525791]